Cogmind - Beta 13 @@@ ROGUE MODE // 2024.04.18 @ 19:58:11 Player: skelll Result: Destroyed by G-47 Trooper with Particle Gun Performance ------------- Evolutions (0) 0 Regions Visited (1) 200 Robots Destroyed (11) 55 Value Destroyed (323) 323 Prototype IDs (0) 0 Alien Tech Used (0) 0 Bonus (0) 0 TOTAL SCORE: 578 Bonus ------- None Cogmind --------- Core Integrity 0/250 Matter 152/300 Energy 99/100 System Corruption 2% Temperature Cool (15) Movement Walking (260) Ox2 Location -10/Materials Parts ------- > --- POWER (1) -------- (None) > --- PROPULSION (2) --- Aluminum Leg Aluminum Leg > --- UTILITY (2) ------ High-capacity Storage Unit Utility Shielding > --- WEAPON (2) ------- Light Assault Rifle Grenade Launcher (fused) > --- INVENTORY (20) --- Light Ion Engine Light Treads Light Treads Improved Heat Sink Datajack Peak State ------------ > --- POWER ------------ Ion Engine > --- PROPULSION ------- Wheel Compact Wheel > --- UTILITY ---------- High-capacity Storage Unit Utility Shielding > --- WEAPON ----------- Assault Rifle Grenade Launcher > --- INVENTORY -------- Light Ion Engine Light Treads Light Treads Aluminum Leg Aluminum Leg Improved Heat Sink Light Assault Rifle Datajack [Rating: 8] Favorites ----------- Power Ion Engine Engine Ion Engine Propulsion Aluminum Leg Leg Aluminum Leg Wheel Wheel Utility High-capacity Storage Unit Storage High-capacity Storage Unit Protection Utility Shielding Weapon Assault Rifle Ballistic Gun Assault Rifle Launcher Grenade Launcher Build | -11 -10 ------- Run | Yrd Mat Slots Evolved . | . . Power . | . . Propulsion . | . . Utility . | . . Weapon . | . . Parts Attached 12 | 6 6 Power 1 | 1 . Engine 1 | 1 . Core . | . . Reactor . | . . Propulsion 4 | 2 2 Treads . | . . Leg 2 | . 2 Wheel 2 | 2 . Hover . | . . Flight . | . . Utility 3 | 1 2 Device . | . . Storage 2 | 1 1 Processor . | . . Hackware . | . . Protection 1 | . 1 Artifact . | . . Weapon 4 | 2 2 Energy Gun . | . . Energy Cannon . | . . Ballistic Gun 3 | 2 1 Ballistic Cannon . | . . Launcher 1 | . 1 Special Weapon . | . . Impact Weapon . | . . Slashing Weapon . | . . Piercing Weapon . | . . Special Melee Weapon . | . . Unidentified Prototypes . | . . Parts Lost 2 | . 2 Power 1 | . 1 Propulsion . | . . Utility . | . . Weapon 1 | . 1 Highest Loss Streak 2 | . 2 To Critical Strikes . | . . Average Slot Usage (%) 94 | . 94 Engine 13 | . 13 Leg 17 | . 17 Wheel 10 | . 10 Storage 14 | . 14 Protection 9 | . 9 Ballistic Gun 17 | . 17 Launcher 9 | . 9 Naked Turns . | . . Heaviest Build 51 | 14 51 Greatest Support 26 | 26 26 Greatest Overweight (x) 2 | . 2 Average Overweight (x) . | . 1 Largest Inventory Capacity 20 | 8 20 Average Capacity 14 | 6 16 Most Carried 9 | 5 9 Average Carried 5 | 2 5 Final Capacity 20 | 8 20 Final Carried 5 | 4 5 Class Distribution -------------------- 100% | Mutant Dominant Class ---------------- Mutant | -10/Materials Resources | -11 -10 ----------- Run | Yrd Mat Matter Collected 374 | 260 114 Remotely . | . . Salvage Created 297 | . 297 Parts 22 | . 22 Haulers Intercepted . | . . Recyclers Shooed . | . . Parts Field Recycled . | . . Retrieved Matter . | . . Parts Self-Destructed . | . . Prevented . | . . Kills | -11 -10 ------- Run | Yrd Mat Combat Hostiles Destroyed 7 | . 7 Guns 5 | . 5 AOE 2 | . 2 Classes Destroyed 4 | . 4 Worker 1 | . 1 Operator 1 | . 1 Watcher 2 | . 2 Grunt 7 | . 7 Best Kill Streak 5 | . 5 Combat Bots Only 5 | . 5 Max Kills in Single Turn 4 | . 4 Gunslinging . | . . Exploded 1 | . 1 Melee . | . . Uniques/NPCs Destroyed . | . . Combat | -11 -10 -------- Run | Yrd Mat Hostile Shots Fired 74 | . 74 Missed 23 | . 23 Damage Taken 716 | . 716 Core 262 | . 262 Absorbed by Shields . | . . Redirected to Shielding 5 | . 5 Core Remaining (%) 100 | 100 . Volleys Fired 42 | . 42 Largest 2 | . 2 Hottest 50 | . 50 Shots Fired 63 | . 63 Gun 58 | . 58 Cannon . | . . Launcher 5 | . 5 Special . | . . Kinetic 58 | . 58 Thermal . | . . Explosive 5 | . 5 Electromagnetic . | . . Robot Hit Streak 12 | . 12 Robot Miss Streak 6 | . 6 Penetration Max . | . . Secondary Targets 2 | . 2 Max Gunslinging Chain 1 | . 1 Shots Hit Robots 31 | . 31 Core Hits 25 | . 25 Critical Kills 1 | . 1 Critical Parts Destroyed . | . . Critical Strikes 1 | . 1 Destroy 1 | . 1 Melee Attacks . | . . Impact . | . . Slashing . | . . Piercing . | . . Sneak Attacks . | . . Combat Hostiles . | . . Follow-up Attacks . | . . Damage Inflicted 786 | . 786 Guns 400 | . 400 Cannons . | . . Explosions 386 | . 386 Melee . | . . Ramming . | . . Kinetic 400 | . 400 Thermal . | . . Explosive 386 | . 386 Electromagnetic . | . . Impact . | . . Slashing . | . . Piercing . | . . Highest Corruption 2 | . 2 Average Corruption 2 | . 2 Corruption Purged . | . . Corruption Blocked . | . . Effects 6 | . 6 Message Errors 1 | . 1 Matter Fused 1 | . 1 Energy Discharges 1 | . 1 Parts Fused 1 | . 1 Data Loss (major) 2 | . 2 Overload Shots . | . . Overflow Damage 4 | . 4 Projectiles . | . . Explosions 4 | . 4 Melee . | . . Knockbacks . | . . Impact . | . . Kinetic . | . . Secondary . | . . Self-Inflicted Damage 36 | . 36 Shots 2 | . 2 Rammed . | . . Targets Rammed . | . . Kicked . | . . Crushed . | . . Highest Temperature 19 | . 19 Average Temperature 5 | . 5 Received Heat Transfer 384 | . 384 Siege Activations . | . . Robots Corrupted . | . . Combat Hostiles . | . . Parts Fried . | . . Impact Corruptions . | . . Robots Melted . | . . Combat Hostiles . | . . Parts Melted . | . . Heat Transferred . | . . Parts Sabotaged . | . . Parts Stolen . | . . Parts Stripped . | . . Power Chain Reactions . | . . Alert | -11 -10 ------- Run | Yrd Mat Peak Influence 165 | . 165 Initial . | . . Average 94 | . 108 Maximum Alert Level . | . . Low Security (%) 100 | 100 100 Level 1 . | . . Level 2 . | . . Level 3 . | . . Level 4 . | . . Level 5 . | . . High Security . | . . Max Security . | . . Squads Dispatched 1 | . 1 Investigation . | . . Extermination . | . . Reinforcement 1 | . 1 Assault . | . . Garrison . | . . Intercept . | . . Searches Triggered . | . . Construction Impeded . | . . Haulers Reinforced . | . . Active Scanning Responses . | . . Cargo Convoy Interrupts . | . . Stealth | -11 -10 --------- Run | Yrd Mat Distress Signals 1 | . 1 Communications Jammed . | . . Distress Signals . | . . Times Spotted 15 | . 15 Peak Tracking Total 6 | . 6 Tactical Retreats . | . . Traps | -11 -10 ------- Run | Yrd Mat Traps Triggered 1 | . 1 Indirectly . | . . Trap Hack Attempts . | . . Triggered . | . . Disarmed . | . . Reprogrammed . | . . Reused . | . . Traps Extracted . | . . Installed . | . . Triggered . | . . Machines | -11 -10 ---------- Run | Yrd Mat Machines Disabled 1 | . 1 Max in Single Turn 1 | . 1 Machines Repaired . | . . Machines Dismantled . | . . Machines Sabotaged . | . . Overloaded Fab Kills . | . . Hacking | -11 -10 --------- Run | Yrd Mat Machines Accessed 1 | . 1 Terminals 1 | . 1 Fabricators . | . . Repair Stations . | . . Recycling Units . | . . Scanalyzers . | . . Garrison Access . | . . Total Hacks 1 | . 1 Successful 1 | . 1 Failed . | . . Catastrophic . | . . Database Lockouts . | . . Manual . | . . Terminals 1 | . 1 Fabricators . | . . Repair Stations . | . . Recycling Units . | . . Scanalyzers . | . . Garrison Access . | . . Terminal Hacks 1 | . 1 Zone Layout 1 | . 1 Fabricator Hacks . | . . Repair Station Hacks . | . . Recycling Unit Hacks . | . . Scanalyzer . | . . Garrison Access Hacks . | . . Unauthorized Hacks . | . . Terminals . | . . Fabricators . | . . Repair Stations . | . . Recycling Units . | . . Scanalyzers . | . . Garrison Access . | . . Data Cores Recovered . | . . Used . | . . Hacking Detections . | . . Full Trace Events . | . . Feedback Events . | . . Feedback Blocked . | . . Robot Schematics Acquired . | . . Robots Built . | . . Authchips . | . . Time . | . . Total Robot Build Rating . | . . Part Schematics Acquired . | . . Parts Built . | . . Authchips . | . . Time . | . . Total Part Build Rating . | . . Parts Repaired . | . . Time . | . . Parts Recycled . | . . Recycled Matter . | . . Retrieved Matter . | . . Retrieved Components . | . . Parts Scanalyzed . | . . Part Schematics Acquired . | . . Parts Damaged . | . . Bothacking | -11 -10 ------------ Run | Yrd Mat Used RIF Installer . | . . Robots Hacked . | . . Non-combat . | . . Combat . | . . Robot Hacks Applied . | . . Relay Couplers Released . | . . Fabnet Peak Effective % . | . . Robots Rewired . | . . Allies Hacked . | . . Hacks Repelled . | . . Allies | -11 -10 -------- Run | Yrd Mat Total Allies . | . . Largest Group . | . . Highest-Rated Group . | . . Highest-Rated Ally . | . . Total Orders . | . . Ally Attacks . | . . Total Damage . | . . Kills . | . . Allies Corrupted . | . . Allies Melted . | . . Intel | -11 -10 ------- Run | Yrd Mat Robot Analysis Total . | . . Derelict Logs Recovered . | . . Drone Launches . | . . Drone Recoveries . | . . Exploration | -11 -10 ------------- Run | Yrd Mat Turns Passed 526 | 67 459 Spaces Moved 254 | 62 192 Core 11 | 11 . Treads . | . . Legs 93 | . 93 Wheels 150 | 51 99 Hover . | . . Flight . | . . Fastest Speed 50 | 50 90 Average Speed 151 | 82 173 Slowest Speed 260 | 90 260 Overloaded Moves . | . . Propulsion Burnouts . | . . Robots Hopped . | . . Cave-ins Triggered . | . . Exploration Rate (%) 21 | 4 39 Regions Visited 1 Branch Regions . Pre-discovered Areas . | . . Known Exits Taken . | . . Unknown Exits Taken 1 | 1 . Scrap Searched . | . . Spaces Dug . | . . Terrain Destroyed 33 | . 33 Melee . | . . Projectile . | . . AOE 33 | . 33 Terrain Rammed . | . . Walls Destroyed . | . . Machines Disabled . | . . Actions | -11 -10 --------- Run | Yrd Mat Total 339 | 77 262 Wait 7 | . 7 Move 253 | 61 192 Hop . | . . Pick Up 17 | 10 7 Fast Attach 1 | . 1 Attach 11 | 6 5 Detach 3 | . 3 Swap . | . . Drop 5 | . 5 Fire 42 | . 42 Melee . | . . Ram . | . . Kick . | . . Crush . | . . Escape Stasis . | . . Rewire . | . . Trap . | . . Miscellaneous . | . . Route ------- -11/Scrapyard -10/Materials (discovered 1 exit: [*Mat]) History --------- Turn | Location | Event 24 | -11/Scrapyard | Discovered new exit (range 15) 68 | -11/Scrapyard | Entered Materials 294 | -10/Materials | Discovered new exit (range 15) 317 | -10/Materials | Build established: Mutant 470 | -10/Materials | Core integrity fell below 50% 503 | -10/Materials | Core integrity fell below 20% 527 | -10/Materials | Destroyed by G-47 Trooper with Particle Gun Last Messages --------------- 00399_ Current location identified: Materials >>Layout(Zone) Retrieving Zone 4C layout... Downloaded map data. 00401_ System corrupted: Grenade Launcher fused. 00447_ SPP AY19 :IEHB #,J,:>2QMM72D3DP4REXLRMP 00473_ Atomic Centrifuge disabled. 00473_ G-34 Mercenary destroyed. 00476_ Destroyed Hover Unit. 00476_ W-16 Scout destroyed. 00477_ W-16 Scout sends out distress signal. 00478_ U-05 Engineer lays Concrete. 00495_ System corrupted: Energy discharge (-70). 00495_ Assault Rifle destroyed. 00495_ U-05 Engineer lays Concrete. 00499_ G-47 Trooper destroyed. 00500_ Ion Engine destroyed. 00501_ The unstable cave ceiling collapses. 00515_ System corrupted: Matter fused (-6). 00523_ M-13 Machinist repairs G-34 Mercenary. Map ----- +----------------------------------------------------+ | | | | | | | | | | | ?????????????????????????????????????????????????? | | ?????????????????????????????????????????????????? | | ?????????????????????????????????????????????????? | | ?????????????????????????????????????????????????? | | ?????????????????????????????????????????????????? | | ?????????????????????????????????????????????????? | | ?????????????????????????????????????????????????? | | ?????????????????????????????????????????????????? | | ???????????????????????????????############??????? | | ????????????????????????######## # #??????? | | ??????????????##????????# # < # #??????? | | ?????????????? #????????# T # # #??????? | | ?????????????? #????????# + + """ #??????? | | ?????????????? #????????# # # """ #??????? | | ?????????????? #????????# # # """ #??????? | | ?????????? ?? #????????# # ########??????? | | ?????????? #????????######## #?????????????? | | ???????#### # ???????????????# ###########???? | | ??? !% ########?????# # """ #???? | | ????? ^ !*% ####### # """"" #???? | | ???????? " %* ! m g@ # """"" #???? | | ????????? " = # # #g + """"" #???? | | ????????? " ######## u # """ #???? | | ???????? *? # #?######## # #???? | | ??????? ????? # #????????# # #???? | | ?????????????? + #????????# # #???? | | ?????????????? # #????????# ###########???? | | ??????????????????????########## #?????????????? | | ??????????????????????# T # #?????????????? | | ??????????????????????# """ # #?????????????? | | ??????????????????????# """ [# #?????????????? | | ??????????????????????# ! """ # #?????????????? | | ??????????????????????# # #?????????????? | | ??????????????????????# """ # #?????????????? | | ??????????????????????# """ # #?????????????? | | ??????????????????????# = """ + #?????????????? | | ??????????? ????????# = # #???####??????? | | ??????????# #########+###### ##?] ??????? | | ??????????# # "????????# | | ???????????????# ^ # ""???????? | | ???????????????# ^ + ""???????? | | ???????????????# !!/ # ?????????? | | ???????????????##########=[ ! # ?????????# | | ??????????????????#######+# !/ #? ????????# | | ??????????????????# %# #?? "???????# | +----------------------------------------------------+ Best States ------------- Heat Dissipation 25 Energy Generation 10 Energy Capacity 250 Matter Stores 300 Matter Capacity 300 Sight Range 16 Terrain Scan Density 10 Utility Shielding 33 Evasion (%) 50 Item Schematics ----------------- None Robot Schematics ------------------ None Fabricated ------------ Nothing Alien Tech Used ----------------- None Achievements -------------- None Challenges ------------ None Game ------ Seed StormDataWeb Manual? 0 Play Time 00:10:19 Cumulative 4.0 hours Start 2024.04.18 @ 19:49:01 End 2024.04.18 @ 19:58:11 Sessions 1 Manual Loads 0 Difficulty Rogue Special Mode None Game No. 6 Rogue 6 Adventurer 0 Explorer 0 Win Type - Total 0 Types 0/0/0/0/0/0/0/0/0 Lore% 4 Gallery% 7 Achievement% 5 Wizard Run 0 Options --------- Layout 1 ASCII 0 Keyboard 1 Movement Arrows Keybinds 0 Fullscreen 2 Font 24/Smallcaps Map View 50x35 Zoom Use 0% Tactical HUD 1 Map Filters NONE Filters NONE Steam 1 RUN: 55b8acfe-b58f-4733-90a0-e9d85d443b16